[Event "2026 European Womens Championship"]
[Site "Batumi, GE"]
[Date "2026.06.05"]
[Round "11"]
[White "Kubicka, Anna"]
[Black "Poliakova, Varvara"]
[Result "1-0"]
[Board "35"]
[TimeControl "5400+30"]
[WhiteFideId "1152254"]
[BlackFideId "13518313"]
[WhiteElo "2226"]
[BlackElo "2108"]
[WhiteTitle "WIM"]
[BlackTitle "WFM"]
[WhiteClock "0:06:35"]
[BlackClock "0:29:37"]
[Variant "Standard"]

1. e4 {[%clk 1:30:54]}  c5 {[%clk 1:30:08]} 2. Nf3 {[%clk 1:31:09]}  d6 {[%clk 1:30:18]} 3. d4 {[%clk 1:31:27]}  cxd4 {[%clk 1:30:40]}
4. Nxd4 {[%clk 1:31:52]}  Nf6 {[%clk 1:31:07]} 5. Nc3 {[%clk 1:32:16]}  a6 {[%clk 1:31:34]} 6. h3 {[%clk 1:32:33]}  e5 {[%clk 1:29:47]}
7. Nb3 {[%clk 1:32:46]}  Be7 {[%clk 1:27:56]} 8. g4 {[%clk 1:32:53]}  h6 {[%clk 1:27:07]} 9. Be3 {[%clk 1:33:17]}  b5 {[%clk 1:24:23]}
10. Nd5 {[%clk 1:32:25]}  Bb7 {[%clk 1:24:48]} 11. Bb6 {[%clk 1:26:45]}  Qc8 {[%clk 1:25:02]} 12. Nc7+ {[%clk 1:27:02]}  Kf8 {[%clk 1:25:27]}
13. Nxa8 {[%clk 1:26:40]}  Nbd7 {[%clk 1:25:26]} 14. Be3 {[%clk 1:17:39]}  Qxa8 {[%clk 1:25:29]} 15. f3 {[%clk 1:04:49]}  Bxe4 {[%clk 1:24:30]}
16. Bg2 {[%clk 1:05:15]}  Bd5 {[%clk 1:20:32]} 17. Qe2 {[%clk 1:01:06]}  g6 {[%clk 1:15:55]} 18. O-O-O {[%clk 0:57:57]}  Kg7 {[%clk 1:12:53]}
19. Kb1 {[%clk 0:55:40]}  a5 {[%clk 1:04:05]} 20. Qxb5 {[%clk 0:36:59]}  a4 {[%clk 1:00:11]} 21. Nc1 {[%clk 0:34:36]}  Rb8 {[%clk 0:54:47]}
22. Qe2 {[%clk 0:26:08]}  Qb7 {[%clk 0:44:20]} 23. b3 {[%clk 0:26:02]}  Bc6 {[%clk 0:42:19]} 24. Qd2 {[%clk 0:21:07]}  d5 {[%clk 0:36:10]}
25. Bxh6+ {[%clk 0:19:38]}  Kh7 {[%clk 0:36:34]} 26. h4 {[%clk 0:19:44]}  d4 {[%clk 0:32:53]} 27. h5 {[%clk 0:18:47]}  gxh5 {[%clk 0:29:51]}
28. g5 {[%clk 0:09:17]}  Nd5 {[%clk 0:26:07]} 29. Rxh5 {[%clk 0:09:16]}  Kg8 {[%clk 0:22:50]} 30. Rdh1 {[%clk 0:06:16]}  Nf4 {[%clk 0:22:25]}
31. g6 {[%clk 0:05:20]}  Nxh5 {[%clk 0:22:19]} 32. gxf7+ {[%clk 0:05:35]}  Kxf7 {[%clk 0:22:44]} 33. Rxh5 {[%clk 0:05:50]}  Rg8 {[%clk 0:16:44]}
34. Bg5 {[%clk 0:04:16]}  Rg7 {[%clk 0:14:51]} 35. Bxe7 {[%clk 0:03:12]}  Kxe7 {[%clk 0:15:16]} 36. Rg5 {[%clk 0:03:33]}  Rxg5 {[%clk 0:13:43]}
37. Qxg5+ {[%clk 0:04:00]}  Kd6 {[%clk 0:14:09]} 38. Bh3 {[%clk 0:02:47]}  axb3 {[%clk 0:10:41]} 39. axb3 {[%clk 0:03:13]}  Bxf3 {[%clk 0:09:21]}
40. Bxd7 {[%clk 0:03:34]}  Kxd7 {[%clk 0:09:47]} 41. Nd3 {[%clk 0:03:28]}  Qd5 {[%clk 0:06:07]} 42. Nxe5+ {[%clk 0:22:13]}  Ke6 {[%clk 0:31:27]}
43. Nxf3 {[%clk 0:22:32]}  Qxf3 {[%clk 0:31:52]} 44. Qg8+ {[%clk 0:22:29]}  Kd6 {[%clk 0:25:34]} 45. Qd8+ {[%clk 0:20:36]}  Kc5 {[%clk 0:25:39]}
46. Qc7+ {[%clk 0:20:14]}  Kb5 {[%clk 0:25:52]} 47. Qc4+ {[%clk 0:20:14]}  Ka5 {[%clk 0:26:14]} 48. Qa4+ {[%clk 0:19:12]}  Kb6 {[%clk 0:26:40]}
49. Qxd4+ {[%clk 0:19:37]}  Ka5 {[%clk 0:27:07]} 50. Qd8+ {[%clk 0:18:57]}  Kb4 {[%clk 0:27:18]} 51. Qb6+ {[%clk 0:14:39]}  Kc3 {[%clk 0:27:43]}
52. Qc5+ {[%clk 0:11:39]}  Kd2 {[%clk 0:28:08]} 53. Qd4+ {[%clk 0:10:35]}  Ke1 {[%clk 0:28:34]} 54. Kb2 {[%clk 0:10:21]}  Qb7 {[%clk 0:28:39]}
55. b4 {[%clk 0:10:31]}  Qb8 {[%clk 0:28:37]} 56. Qc5 {[%clk 0:09:32]}  Kd2 {[%clk 0:29:02]} 57. Qf2 {[%clk 0:08:17]}  Kd1 {[%clk 0:29:26]}
58. Qf1+ {[%clk 0:05:53]}  Kd2 {[%clk 0:29:51]} 59. Qd3 {[%clk 0:06:18]}  Ke1 {[%clk 0:30:16]} 60. b5 {[%clk 0:06:40]}  Qb6 {[%clk 0:29:22]}
61. Qc4 {[%clk 0:05:49]}  Kd1 {[%clk 0:29:20]} 62. Qd5+ {[%clk 0:05:02]}  Ke2 {[%clk 0:29:44]} 63. Qe4 {[%clk 0:04:51]}  Kd2 {[%clk 0:29:52]}
64. Qg2 {[%clk 0:04:49]}  Kd1 {[%clk 0:30:14]} 65. Qc6 {[%clk 0:04:54]}  Qd4+ {[%clk 0:30:30]} 66. Qc3 {[%clk 0:04:58]}  Qb6 {[%clk 0:30:19]}
67. Qd3+ {[%clk 0:05:24]}  Ke1 {[%clk 0:30:45]} 68. Kb3 {[%clk 0:05:45]}  Qe6+ {[%clk 0:30:10]} 69. Qc4 {[%clk 0:05:55]}  Qh6 {[%clk 0:29:31]}
70. Qc6 {[%clk 0:05:53]}  Qe3+ {[%clk 0:29:10]} 71. Qc3+ {[%clk 0:06:12]}  Kd1 {[%clk 0:29:37]} 72. Qd3+ {[%clk 0:06:35]} 1-0

[Event "2026 European Womens Championship"]
[Site "Batumi, GE"]
[Date "2026.06.05"]
[Round "11"]
[White "Deak-Sala, Emilia"]
[Black "Mamedjarova, Turkan"]
[Result "1/2-1/2"]
[Board "36"]
[TimeControl "5400+30"]
[WhiteFideId "795615"]
[BlackFideId "13402005"]
[WhiteElo "2086"]
[BlackElo "2222"]
[WhiteTitle "WFM"]
[BlackTitle "WGM"]
[WhiteClock "0:02:35"]
[BlackClock "0:12:45"]
[Variant "Standard"]

1. Nf3 {[%clk 1:29:28]}  Nf6 {[%clk 1:30:25]} 2. g3 {[%clk 1:29:35]}  e6 {[%clk 1:28:15]} 3. Bg2 {[%clk 1:29:56]}  d5 {[%clk 1:28:29]}
4. d3 {[%clk 1:30:12]}  Be7 {[%clk 1:27:52]} 5. O-O {[%clk 1:30:36]}  O-O {[%clk 1:27:45]} 6. Nbd2 {[%clk 1:30:57]}  b6 {[%clk 1:27:47]}
7. e4 {[%clk 1:31:21]}  c5 {[%clk 1:25:51]} 8. e5 {[%clk 1:31:40]}  Nfd7 {[%clk 1:24:54]} 9. Re1 {[%clk 1:32:02]}  Bb7 {[%clk 1:25:20]}
10. h4 {[%clk 1:31:50]}  Nc6 {[%clk 1:25:31]} 11. Nf1 {[%clk 1:32:03]}  Re8 {[%clk 1:25:10]} 12. h5 {[%clk 1:30:44]}  Nf8 {[%clk 1:15:21]}
13. h6 {[%clk 1:25:59]}  g6 {[%clk 1:15:38]} 14. N1h2 {[%clk 1:26:26]}  b5 {[%clk 1:03:15]} 15. Ng4 {[%clk 1:24:06]}  Rc8 {[%clk 1:02:28]}
16. Bf4 {[%clk 1:23:30]}  b4 {[%clk 1:00:42]} 17. Qd2 {[%clk 1:20:20]}  c4 {[%clk 1:00:06]} 18. Bg5 {[%clk 1:18:17]}  c3 {[%clk 0:38:05]}
19. bxc3 {[%clk 1:18:17]}  bxc3 {[%clk 0:38:11]} 20. Qf4 {[%clk 1:18:30]}  Nd7 {[%clk 0:37:42]} 21. Bh3 {[%clk 1:10:08]}  d4 {[%clk 0:28:26]}
22. Rab1 {[%clk 1:04:10]}  Ba8 {[%clk 0:28:17]} 23. Bxe7 {[%clk 0:58:32]}  Qxe7 {[%clk 0:28:33]} 24. Nxd4 {[%clk 0:57:11]}  Nxd4 {[%clk 0:22:36]}
25. Qxd4 {[%clk 0:56:01]}  Red8 {[%clk 0:23:02]} 26. Qxa7 {[%clk 0:51:41]}  Qg5 {[%clk 0:20:57]} 27. Qe3 {[%clk 0:37:11]}  Qh5 {[%clk 0:16:42]}
28. Kh2 {[%clk 0:37:29]}  Rc5 {[%clk 0:14:44]} 29. f3 {[%clk 0:35:37]}  Ra5 {[%clk 0:14:04]} 30. Re2 {[%clk 0:22:45]}  Rxa2 {[%clk 0:13:36]}
31. Qd4 {[%clk 0:22:27]}  Bd5 {[%clk 0:13:19]} 32. Qf4 {[%clk 0:18:37]}  Rda8 {[%clk 0:11:53]} 33. Kg2 {[%clk 0:07:58]}  Rb2 {[%clk 0:08:24]}
34. Rc1 {[%clk 0:06:41]}  Rba2 {[%clk 0:04:36]} 35. Rh1 {[%clk 0:04:14]}  Ra1 {[%clk 0:03:38]} 36. Rxa1 {[%clk 0:04:25]}  Rxa1 {[%clk 0:04:05]}
37. Nf6+ {[%clk 0:03:13]}  Nxf6 {[%clk 0:04:33]} 38. exf6 {[%clk 0:03:37]}  Rb1 {[%clk 0:02:57]} 39. Rf2 {[%clk 0:02:46]}  g5 {[%clk 0:02:32]}
40. Qc7 {[%clk 0:01:28]}  Qxh6 {[%clk 0:02:39]} 41. Qc8+ {[%clk 0:01:39]}  Qf8 {[%clk 0:03:06]} 42. Qxc3 {[%clk 0:29:08]}  Qb8 {[%clk 0:31:42]}
43. Qc5 {[%clk 0:20:14]}  h6 {[%clk 0:25:21]} 44. c4 {[%clk 0:18:15]}  Ba8 {[%clk 0:24:44]} 45. Qd4 {[%clk 0:15:22]}  Bc6 {[%clk 0:21:43]}
46. Kh2 {[%clk 0:12:28]}  Kh7 {[%clk 0:21:16]} 47. Qc5 {[%clk 0:02:33]}  Qa8 {[%clk 0:11:59]} 48. Bxe6 {[%clk 0:00:48]}  Qa1 {[%clk 0:11:31]}
49. Bf5+ {[%clk 0:01:15]}  Kg8 {[%clk 0:11:57]} 50. Bh7+ {[%clk 0:01:42]}  Kxh7 {[%clk 0:12:25]} 51. Qf5+ {[%clk 0:02:08]}  Kh8 {[%clk 0:12:19]}
52. Qc8+ {[%clk 0:02:35]}  Kh7 {[%clk 0:12:45]} 1/2-1/2

[Event "2026 European Womens Championship"]
[Site "Batumi, GE"]
[Date "2026.06.05"]
[Round "11"]
[White "Golsta, Madara"]
[Black "Tirpan, Ceren"]
[Result "0-1"]
[Board "37"]
[TimeControl "5400+30"]
[WhiteFideId "11607386"]
[BlackFideId "26385309"]
[WhiteElo "2023"]
[BlackElo "2209"]
[BlackTitle "WFM"]
[WhiteClock "0:07:35"]
[BlackClock "0:23:47"]
[Variant "Standard"]

1. e4 {[%clk 1:30:57]}  c5 {[%clk 1:30:56]} 2. Nf3 {[%clk 1:31:20]}  a6 {[%clk 1:31:23]} 3. c4 {[%clk 1:29:57]}  Nc6 {[%clk 1:31:48]}
4. d4 {[%clk 1:26:25]}  cxd4 {[%clk 1:32:11]} 5. Nxd4 {[%clk 1:26:47]}  e5 {[%clk 1:32:36]} 6. Nxc6 {[%clk 1:25:24]}  bxc6 {[%clk 1:30:40]}
7. Be2 {[%clk 1:18:09]}  Rb8 {[%clk 1:26:32]} 8. O-O {[%clk 1:15:35]}  Bc5 {[%clk 1:24:49]} 9. Nd2 {[%clk 1:14:25]}  Nf6 {[%clk 1:08:55]}
10. Nb3 {[%clk 1:10:38]}  Be7 {[%clk 1:08:44]} 11. Bd2 {[%clk 1:10:20]}  Qc7 {[%clk 1:06:02]} 12. Ba5 {[%clk 1:07:38]}  Qa7 {[%clk 1:06:09]}
13. Rc1 {[%clk 0:50:49]}  Nxe4 {[%clk 0:40:17]} 14. Qd3 {[%clk 0:50:19]}  Nc5 {[%clk 0:39:37]} 15. Qe3 {[%clk 0:49:24]}  O-O {[%clk 0:34:11]}
16. Rc2 {[%clk 0:43:38]}  Rb7 {[%clk 0:27:10]} 17. Qxe5 {[%clk 0:41:47]}  Nxb3 {[%clk 0:26:09]} 18. axb3 {[%clk 0:41:32]}  Qc5 {[%clk 0:25:57]}
19. Qxc5 {[%clk 0:37:59]}  Bxc5 {[%clk 0:26:21]} 20. Rc3 {[%clk 0:36:11]}  Bd4 {[%clk 0:23:25]} 21. Rd3 {[%clk 0:35:52]}  Bxb2 {[%clk 0:23:48]}
22. b4 {[%clk 0:35:34]}  Be5 {[%clk 0:20:45]} 23. c5 {[%clk 0:33:38]}  Bc7 {[%clk 0:19:13]} 24. Bxc7 {[%clk 0:28:55]}  Rxc7 {[%clk 0:19:38]}
25. Rd4 {[%clk 0:25:13]}  Re8 {[%clk 0:16:18]} 26. Bd3 {[%clk 0:20:54]}  Ra7 {[%clk 0:16:26]} 27. Ra1 {[%clk 0:20:10]}  g6 {[%clk 0:15:12]}
28. f4 {[%clk 0:20:11]}  Kg7 {[%clk 0:15:37]} 29. f5 {[%clk 0:16:28]}  gxf5 {[%clk 0:14:19]} 30. Rh4 {[%clk 0:12:14]}  Re5 {[%clk 0:13:31]}
31. g4 {[%clk 0:09:31]}  d6 {[%clk 0:09:12]} 32. cxd6 {[%clk 0:08:37]}  fxg4 {[%clk 0:09:07]} 33. Rxh7+ {[%clk 0:08:49]}  Kg8 {[%clk 0:09:31]}
34. Rh6 {[%clk 0:05:36]}  Rd5 {[%clk 0:08:02]} 35. Be4 {[%clk 0:04:10]}  Rd4 {[%clk 0:08:24]} 36. Bxc6 {[%clk 0:03:45]}  Kg7 {[%clk 0:08:49]}
37. Rh5 {[%clk 0:02:58]}  Rxd6 {[%clk 0:09:07]} 38. b5 {[%clk 0:02:35]}  Rc7 {[%clk 0:09:26]} 39. Rg5+ {[%clk 0:01:20]}  Kh6 {[%clk 0:09:36]}
40. Re5 {[%clk 0:00:55]}  axb5 {[%clk 0:07:54]} 41. Bxb5 {[%clk 0:01:18]}  Rc2 {[%clk 0:08:10]} 42. Be2 {[%clk 0:21:07]}  Rdd2 {[%clk 0:34:22]}
43. Kf1 {[%clk 0:19:34]}  f5 {[%clk 0:30:31]} 44. Re8 {[%clk 0:17:29]}  Bd7 {[%clk 0:27:05]} 45. Re7 {[%clk 0:13:21]}  Rxe2 {[%clk 0:22:43]}
46. Rxd7 {[%clk 0:12:17]}  Rf2+ {[%clk 0:22:57]} 47. Kg1 {[%clk 0:12:29]}  Rg2+ {[%clk 0:23:22]} 48. Kf1 {[%clk 0:12:52]}  Rcf2+ {[%clk 0:23:39]}
49. Ke1 {[%clk 0:13:16]}  Rxh2 {[%clk 0:23:31]} 50. Ra6+ {[%clk 0:09:55]}  Kg5 {[%clk 0:23:51]} 51. Rg7+ {[%clk 0:08:30]}  Kf4 {[%clk 0:24:08]}
52. Rb7 {[%clk 0:07:36]}  Kg3 {[%clk 0:23:33]} 53. Rb3+ {[%clk 0:07:35]}  Kg2 {[%clk 0:23:47]} 0-1

[Event "2026 European Womens Championship"]
[Site "Batumi, GE"]
[Date "2026.06.05"]
[Round "11"]
[White "Rudzinska, Michalina"]
[Black "Venskaya, Nika"]
[Result "0-1"]
[Board "38"]
[TimeControl "5400+30"]
[WhiteFideId "1172883"]
[BlackFideId "13523503"]
[WhiteElo "2200"]
[BlackElo "1937"]
[WhiteTitle "WGM"]
[BlackTitle "WCM"]
[WhiteClock "0:00:37"]
[BlackClock "0:22:32"]
[Variant "Standard"]

1. e4 {[%clk 1:30:54]}  c5 {[%clk 1:30:52]} 2. Nf3 {[%clk 1:31:16]}  d6 {[%clk 1:31:16]} 3. d4 {[%clk 1:31:39]}  cxd4 {[%clk 1:31:42]}
4. Nxd4 {[%clk 1:32:01]}  Nf6 {[%clk 1:32:05]} 5. Nc3 {[%clk 1:32:02]}  g6 {[%clk 1:32:29]} 6. Be3 {[%clk 1:31:57]}  Bg7 {[%clk 1:32:54]}
7. f3 {[%clk 1:31:45]}  O-O {[%clk 1:33:12]} 8. Qd2 {[%clk 1:32:07]}  Nc6 {[%clk 1:33:38]} 9. O-O-O {[%clk 1:32:22]}  d5 {[%clk 1:34:03]}
10. Nxc6 {[%clk 1:32:21]}  bxc6 {[%clk 1:34:27]} 11. Bc4 {[%clk 1:32:14]}  e6 {[%clk 1:33:17]} 12. Bb3 {[%clk 1:32:20]}  Qc7 {[%clk 1:18:05]}
13. h4 {[%clk 1:29:09]}  dxe4 {[%clk 1:04:53]} 14. Bh6 {[%clk 1:14:30]}  Bxh6 {[%clk 1:00:00]} 15. Qxh6 {[%clk 1:14:54]}  exf3 {[%clk 1:00:10]}
16. gxf3 {[%clk 1:06:27]}  Nh5 {[%clk 0:59:37]} 17. Ne4 {[%clk 0:59:12]}  Qf4+ {[%clk 0:59:07]} 18. Qxf4 {[%clk 0:59:35]}  Nxf4 {[%clk 0:59:34]}
19. Nc5 {[%clk 0:51:47]}  Kg7 {[%clk 0:55:43]} 20. Rd6 {[%clk 0:48:28]}  a5 {[%clk 0:51:51]} 21. Rhd1 {[%clk 0:40:34]}  e5 {[%clk 0:44:02]}
22. Rxc6 {[%clk 0:28:38]}  Ne2+ {[%clk 0:42:27]} 23. Kb1 {[%clk 0:28:56]}  Nd4 {[%clk 0:42:49]} 24. Rc7 {[%clk 0:28:18]}  Nb5 {[%clk 0:40:39]}
25. Re7 {[%clk 0:23:17]}  Kf6 {[%clk 0:39:24]} 26. Red7 {[%clk 0:23:26]}  Nd4 {[%clk 0:37:50]} 27. Bd5 {[%clk 0:19:34]}  Rb8 {[%clk 0:34:41]}
28. c3 {[%clk 0:16:34]}  Ne2 {[%clk 0:33:06]} 29. Kc2 {[%clk 0:15:56]}  Nf4 {[%clk 0:30:51]} 30. Ra7 {[%clk 0:11:43]}  Ng2 {[%clk 0:29:25]}
31. Kc1 {[%clk 0:09:29]}  Bf5 {[%clk 0:26:21]} 32. Be4 {[%clk 0:07:21]}  Nxh4 {[%clk 0:24:28]} 33. Rxa5 {[%clk 0:03:56]}  Bxe4 {[%clk 0:16:07]}
34. fxe4 {[%clk 0:03:43]}  Ra8 {[%clk 0:14:04]} 35. Nd7+ {[%clk 0:03:49]}  Kg7 {[%clk 0:14:32]} 36. Rxe5 {[%clk 0:03:31]}  Nf3 {[%clk 0:14:43]}
37. Red5 {[%clk 0:02:44]}  Rfe8 {[%clk 0:14:37]} 38. R1d3 {[%clk 0:01:09]}  Nh4 {[%clk 0:11:11]} 39. Nc5 {[%clk 0:00:35]}  Rxa2 {[%clk 0:11:09]}
40. Rd7 {[%clk 0:00:33]}  Ra1+ {[%clk 0:10:58]} 41. Kd2 {[%clk 0:29:43]}  h5 {[%clk 0:37:00]} 42. c4 {[%clk 0:22:10]}  g5 {[%clk 0:35:40]}
43. Nb7 {[%clk 0:18:27]}  g4 {[%clk 0:34:31]} 44. Nd6 {[%clk 0:18:30]}  Rf8 {[%clk 0:34:16]} 45. c5 {[%clk 0:10:26]}  Nf3+ {[%clk 0:33:24]}
46. Rxf3 {[%clk 0:10:25]}  gxf3 {[%clk 0:33:26]} 47. Ke3 {[%clk 0:10:45]}  Rb1 {[%clk 0:32:41]} 48. Rb7 {[%clk 0:07:00]}  Kg6 {[%clk 0:29:52]}
49. Kxf3 {[%clk 0:06:53]}  h4 {[%clk 0:28:56]} 50. Kg4 {[%clk 0:04:49]}  h3 {[%clk 0:28:23]} 51. Nf5 {[%clk 0:00:39]}  h2 {[%clk 0:22:00]}
52. Rb6+ {[%clk 0:00:55]}  f6 {[%clk 0:22:21]} 53. Rb7 {[%clk 0:00:54]}  Rg8 {[%clk 0:21:42]} 54. Ne7+ {[%clk 0:00:47]}  Kh7+ {[%clk 0:21:46]}
55. Nxg8+ {[%clk 0:00:35]}  Kxg8 {[%clk 0:22:06]} 56. Rb8+ {[%clk 0:00:37]}  Kg7 {[%clk 0:22:32]} 0-1

[Event "2026 European Womens Championship"]
[Site "Batumi, GE"]
[Date "2026.06.05"]
[Round "11"]
[White "Rakhmangulova, Anastasiya"]
[Black "Dimitrijevic, Aleksandra"]
[Result "1-0"]
[Board "39"]
[TimeControl "5400+30"]
[WhiteFideId "14117479"]
[BlackFideId "929239"]
[WhiteElo "2328"]
[BlackElo "2059"]
[WhiteTitle "WGM"]
[BlackTitle "WGM"]
[WhiteClock "0:44:57"]
[BlackClock "0:24:35"]
[Variant "Standard"]
[Termination "forfeit"]

1. e4 {[%clk 1:30:58]}  c5 {[%clk 1:24:19]} 2. Nf3 {[%clk 1:31:24]}  e6 {[%clk 1:24:43]} 3. d4 {[%clk 1:31:47]}  cxd4 {[%clk 1:25:09]}
4. Nxd4 {[%clk 1:32:13]}  Nc6 {[%clk 1:25:30]} 5. Nc3 {[%clk 1:32:17]}  d6 {[%clk 1:25:52]} 6. Be3 {[%clk 1:30:40]}  Nge7 {[%clk 1:25:26]}
7. Nb3 {[%clk 1:28:48]}  a6 {[%clk 1:25:24]} 8. a4 {[%clk 1:28:53]}  b6 {[%clk 1:23:19]} 9. Be2 {[%clk 1:24:10]}  Bb7 {[%clk 1:21:09]}
10. O-O {[%clk 1:24:15]}  Ng6 {[%clk 1:20:18]} 11. f4 {[%clk 1:23:32]}  Be7 {[%clk 1:20:01]} 12. Qe1 {[%clk 1:20:27]}  Nb4 {[%clk 1:13:52]}
13. Rc1 {[%clk 1:20:32]}  Qc7 {[%clk 1:13:57]} 14. Qf2 {[%clk 1:19:21]}  Bd8 {[%clk 1:13:10]} 15. f5 {[%clk 1:12:59]}  exf5 {[%clk 1:10:35]}
16. exf5 {[%clk 1:13:24]}  Ne5 {[%clk 1:10:58]} 17. Qg3 {[%clk 1:10:33]}  Bf6 {[%clk 1:08:28]} 18. Nd2 {[%clk 1:06:53]}  d5 {[%clk 1:05:25]}
19. Rf4 {[%clk 0:54:09]}  Qd6 {[%clk 1:03:29]} 20. Qf2 {[%clk 0:52:24]}  Nd7 {[%clk 0:58:11]} 21. Rd1 {[%clk 0:50:40]}  Nxc2 {[%clk 0:50:52]}
22. Nde4 {[%clk 0:49:25]}  Qe5 {[%clk 0:38:55]} 23. Nxf6+ {[%clk 0:49:32]}  gxf6 {[%clk 0:39:20]} 24. Bc1 {[%clk 0:48:01]}  d4 {[%clk 0:37:53]}
25. Bf3 {[%clk 0:47:03]}  O-O-O {[%clk 0:35:24]} 26. Qxc2 {[%clk 0:36:17]}  dxc3 {[%clk 0:35:12]} 27. b4 {[%clk 0:33:09]}  b5 {[%clk 0:20:53]}
28. axb5 {[%clk 0:30:01]}  axb5 {[%clk 0:21:08]} 29. Rfd4 {[%clk 0:30:21]}  Bxf3 {[%clk 0:11:35]} 30. Bf4 {[%clk 0:27:44]}  Bxd1 {[%clk 0:11:42]}
31. Qxc3+ {[%clk 0:28:06]}  Kb7 {[%clk 0:12:06]} 32. Bxe5 {[%clk 0:27:14]}  Nxe5 {[%clk 0:11:58]} 33. h3 {[%clk 0:26:19]}  Ba4 {[%clk 0:05:34]}
34. Qc5 {[%clk 0:24:38]}  Rxd4 {[%clk 0:05:48]} 35. Qxd4 {[%clk 0:25:04]}  Kc7 {[%clk 0:05:58]} 36. Qh4 {[%clk 0:23:07]}  Nd7 {[%clk 0:06:08]}
37. Qg3+ {[%clk 0:23:23]}  Kc6 {[%clk 0:05:59]} 38. Qg7 {[%clk 0:23:39]}  Rf8 {[%clk 0:06:25]} 39. Qxh7 {[%clk 0:23:50]}  Bb3 {[%clk 0:06:07]}
40. h4 {[%clk 0:23:03]}  Bd5 {[%clk 0:05:08]} 41. h5 {[%clk 0:18:43]}  Ra8 {[%clk 0:29:40]} 42. h6 {[%clk 0:48:23]}  Nf8 {[%clk 0:29:02]}
43. Qg7 {[%clk 0:47:53]}  Kd7 {[%clk 0:29:28]} 44. Qxf6 {[%clk 0:47:22]}  Rd8 {[%clk 0:27:50]} 45. Qd4 {[%clk 0:43:37]}  Kc7 {[%clk 0:24:40]}
46. Qa7+ {[%clk 0:43:33]}  Bb7 {[%clk 0:23:35]} 47. Qa5+ {[%clk 0:43:53]}  Kc8 {[%clk 0:23:51]} 48. Qxb5 {[%clk 0:44:11]}  Nh7 {[%clk 0:24:10]}
49. Qc4+ {[%clk 0:44:31]}  Kb8 {[%clk 0:24:27]} 50. Qxf7 {[%clk 0:44:19]}  Ng5 {[%clk 0:24:46]} 51. Qe7 {[%clk 0:44:33]}  Rd1+ {[%clk 0:24:35]}
52. Kh2 {[%clk 0:44:57]} 1-0

[Event "2026 European Womens Championship"]
[Site "Batumi, GE"]
[Date "2026.06.05"]
[Round "11"]
[White "Starosta, Martyna"]
[Black "Velikic, Adela"]
[Result "1/2-1/2"]
[Board "40"]
[TimeControl "5400+30"]
[WhiteFideId "21818754"]
[BlackFideId "913553"]
[WhiteElo "2175"]
[BlackElo "2277"]
[WhiteTitle "WIM"]
[BlackTitle "WIM"]
[WhiteClock "0:04:18"]
[BlackClock "0:01:02"]
[Variant "Standard"]

1. e4 {[%clk 1:30:57]}  c5 {[%clk 1:30:55]} 2. Nf3 {[%clk 1:31:22]}  e6 {[%clk 1:31:20]} 3. d4 {[%clk 1:31:34]}  cxd4 {[%clk 1:31:44]}
4. Nxd4 {[%clk 1:31:58]}  Nc6 {[%clk 1:32:06]} 5. Nc3 {[%clk 1:31:23]}  a6 {[%clk 1:32:30]} 6. Nxc6 {[%clk 1:31:18]}  bxc6 {[%clk 1:32:53]}
7. Bd3 {[%clk 1:31:31]}  d5 {[%clk 1:32:43]} 8. O-O {[%clk 1:30:40]}  Nf6 {[%clk 1:32:51]} 9. Qe2 {[%clk 1:27:51]}  Be7 {[%clk 1:32:13]}
10. b3 {[%clk 1:26:23]}  O-O {[%clk 1:28:12]} 11. Bb2 {[%clk 1:26:26]}  c5 {[%clk 1:19:16]} 12. Rad1 {[%clk 1:05:01]}  Bb7 {[%clk 1:09:29]}
13. Na4 {[%clk 0:58:26]}  Qc7 {[%clk 0:38:13]} 14. exd5 {[%clk 0:57:50]}  exd5 {[%clk 0:29:01]} 15. Be5 {[%clk 0:54:12]}  Qc6 {[%clk 0:27:56]}
16. Qf3 {[%clk 0:47:50]}  c4 {[%clk 0:21:55]} 17. Bf5 {[%clk 0:42:35]}  g6 {[%clk 0:21:11]} 18. Rfe1 {[%clk 0:28:25]}  Ne4 {[%clk 0:16:05]}
19. Bxe4 {[%clk 0:23:26]}  dxe4 {[%clk 0:16:29]} 20. Qe3 {[%clk 0:21:05]}  Rad8 {[%clk 0:15:53]} 21. Bd4 {[%clk 0:18:09]}  cxb3 {[%clk 0:09:37]}
22. axb3 {[%clk 0:17:15]}  Qxc2 {[%clk 0:02:37]} 23. Nc3 {[%clk 0:08:06]}  Bb4 {[%clk 0:00:58]} 24. Rd2 {[%clk 0:04:26]}  Qxb3 {[%clk 0:01:05]}
25. Rb1 {[%clk 0:03:01]}  Qc4 {[%clk 0:00:36]} 26. Bf6 {[%clk 0:02:57]}  Bxc3 {[%clk 0:00:49]} 27. Rxd8 {[%clk 0:02:13]}  Bxf6 {[%clk 0:00:40]}
28. Rxf8+ {[%clk 0:02:31]}  Kxf8 {[%clk 0:01:08]} 29. Rxb7 {[%clk 0:02:42]}  Kg7 {[%clk 0:00:52]} 30. g3 {[%clk 0:02:27]}  a5 {[%clk 0:00:36]}
31. Qb3 {[%clk 0:01:49]}  Qxb3 {[%clk 0:00:39]} 32. Rxb3 {[%clk 0:02:17]}  Be7 {[%clk 0:00:41]} 33. Rb7 {[%clk 0:01:56]}  Bc5 {[%clk 0:00:41]}
34. Rc7 {[%clk 0:01:49]}  Bb4 {[%clk 0:00:35]} 35. g4 {[%clk 0:01:31]}  h6 {[%clk 0:00:34]} 36. Kf1 {[%clk 0:01:43]}  Bd6 {[%clk 0:00:34]}
37. Rc4 {[%clk 0:01:05]}  f5 {[%clk 0:00:34]} 38. gxf5 {[%clk 0:01:17]}  gxf5 {[%clk 0:01:03]} 39. Rc6 {[%clk 0:00:58]}  Bxh2 {[%clk 0:00:40]}
40. Ra6 {[%clk 0:01:20]}  Bf4 {[%clk 0:00:36]} 41. Rxa5 {[%clk 0:01:39]}  Kg6 {[%clk 0:00:43]} 42. Ra8 {[%clk 0:22:22]}  Kh5 {[%clk 0:30:14]}
43. Kg2 {[%clk 0:19:49]}  Kg4 {[%clk 0:28:47]} 44. Ra3 {[%clk 0:19:14]}  Kh4 {[%clk 0:20:45]} 45. Ra4 {[%clk 0:18:12]}  Kg5 {[%clk 0:19:53]}
46. Ra8 {[%clk 0:17:58]}  Bd2 {[%clk 0:14:39]} 47. Rd8 {[%clk 0:16:31]}  Bc3 {[%clk 0:14:12]} 48. Rc8 {[%clk 0:16:32]}  Bf6 {[%clk 0:14:02]}
49. Rc4 {[%clk 0:11:35]}  h5 {[%clk 0:11:45]} 50. Ra4 {[%clk 0:11:46]}  h4 {[%clk 0:11:45]} 51. Rb4 {[%clk 0:09:06]}  Kf4 {[%clk 0:10:22]}
52. Rb3 {[%clk 0:09:11]}  Bd4 {[%clk 0:09:56]} 53. Ra3 {[%clk 0:07:37]}  Kg5 {[%clk 0:09:08]} 54. Rb3 {[%clk 0:05:33]}  Bc5 {[%clk 0:02:23]}
55. Rc3 {[%clk 0:05:42]}  Bb4 {[%clk 0:02:08]} 56. Rb3 {[%clk 0:05:25]}  Bd2 {[%clk 0:00:56]} 57. Rb8 {[%clk 0:04:01]}  Kg4 {[%clk 0:00:41]}
58. Rb3 {[%clk 0:04:01]}  Kf4 {[%clk 0:00:48]} 59. Rh3 {[%clk 0:03:32]}  Kg5 {[%clk 0:01:12]} 60. Ra3 {[%clk 0:03:29]}  f4 {[%clk 0:00:59]}
61. Rb3 {[%clk 0:02:54]}  Be1 {[%clk 0:00:48]} 62. Ra3 {[%clk 0:02:16]}  Kf5 {[%clk 0:00:38]} 63. Rb3 {[%clk 0:02:25]}  Bd2 {[%clk 0:00:40]}
64. Ra3 {[%clk 0:02:19]}  Bb4 {[%clk 0:00:37]} 65. Rb3 {[%clk 0:02:37]}  Bd6 {[%clk 0:00:43]} 66. f3 {[%clk 0:01:23]}  e3 {[%clk 0:00:39]}
67. Rb5+ {[%clk 0:01:47]}  Be5 {[%clk 0:00:48]} 68. Rb4 {[%clk 0:01:58]}  Ke6 {[%clk 0:00:36]} 69. Re4 {[%clk 0:02:10]}  Kf5 {[%clk 0:00:40]}
70. Kh3 {[%clk 0:02:21]}  Bf6 {[%clk 0:00:55]} 71. Kg2 {[%clk 0:02:42]}  Bd8 {[%clk 0:00:54]} 72. Kh3 {[%clk 0:02:59]}  Bf6 {[%clk 0:00:45]}
73. Kg2 {[%clk 0:03:21]}  Bc3 {[%clk 0:00:42]} 74. Kh3 {[%clk 0:03:38]}  Be1 {[%clk 0:00:42]} 75. Kg2 {[%clk 0:03:54]}  Bc3 {[%clk 0:00:43]}
76. Kh3 {[%clk 0:04:18]}  Bf6 {[%clk 0:01:02]} 1/2-1/2